[Event "*** SCC Grand Prix: Titled Tuesday Blitz"]
[Site "Chess.com"]
[Date "2020.07.21"]
[Round "9"]
[White "HElissalt"]
[Black "MF1966Idrisov"]
[Result "1/2-1/2"]
[WhiteElo "2279"]
[BlackElo "2362"]
[TimeControl "180+1"]
[EndTime "11:47:50 PDT"]
[Termination "Game drawn by repetition"]

1. c4 {[%clk 0:03:00.9]} 1... c6 {[%clk 0:02:59.6]} 2. d4 {[%clk 0:02:59]} 2...
d6 {[%clk 0:02:59.7]} 3. Nc3 {[%clk 0:02:58]} 3... Nf6 {[%clk 0:02:59.4]} 4. e4
{[%clk 0:02:55.7]} 4... e5 {[%clk 0:02:59.4]} 5. Nge2 {[%clk 0:02:50.4]} 5...
Be7 {[%clk 0:02:59.1]} 6. f3 {[%clk 0:02:49.4]} 6... O-O {[%clk 0:02:58.7]} 7.
Be3 {[%clk 0:02:49.4]} 7... a6 {[%clk 0:02:59.2]} 8. dxe5 {[%clk 0:02:40.6]}
8... dxe5 {[%clk 0:02:58.5]} 9. Qxd8 {[%clk 0:02:40.1]} 9... Bxd8 {[%clk
0:02:51.3]} 10. c5 {[%clk 0:02:36.7]} 10... Nbd7 {[%clk 0:02:50.7]} 11. Na4
{[%clk 0:02:35.8]} 11... Re8 {[%clk 0:02:50]} 12. O-O-O {[%clk 0:02:19.1]} 12...
Nf8 {[%clk 0:02:49.5]} 13. Ng3 {[%clk 0:01:38.4]} 13... Be6 {[%clk 0:02:44.1]}
14. b3 {[%clk 0:01:38.3]} 14... g6 {[%clk 0:02:37.5]} 15. Be2 {[%clk 0:01:20.1]}
15... Kg7 {[%clk 0:02:27.1]} 16. Nf1 {[%clk 0:01:17.7]} 16... Nh5 {[%clk
0:02:24.7]} 17. g3 {[%clk 0:01:14.6]} 17... Be7 {[%clk 0:02:13.8]} 18. Nd2
{[%clk 0:01:13.6]} 18... f5 {[%clk 0:02:09.8]} 19. Nc4 {[%clk 0:01:09.3]} 19...
Bxc4 {[%clk 0:01:55.8]} 20. Bxc4 {[%clk 0:01:08.6]} 20... f4 {[%clk 0:01:55.9]}
21. Bf2 {[%clk 0:01:06.7]} 21... Rad8 {[%clk 0:01:46]} 22. g4 {[%clk 0:01:03.7]}
22... Nf6 {[%clk 0:01:45]} 23. h4 {[%clk 0:01:03.4]} 23... h5 {[%clk 0:01:39.8]}
24. g5 {[%clk 0:01:02.1]} 24... N6d7 {[%clk 0:01:39.4]} 25. b4 {[%clk
0:00:58.1]} 25... Nb8 {[%clk 0:01:29.2]} 26. a3 {[%clk 0:00:55]} 26... Rxd1+
{[%clk 0:01:28.5]} 27. Rxd1 {[%clk 0:00:54.3]} 27... Rd8 {[%clk 0:01:28.3]} 28.
Rxd8 {[%clk 0:00:50.2]} 28... Bxd8 {[%clk 0:01:28.3]} 29. Nb2 {[%clk 0:00:47.7]}
29... Bc7 {[%clk 0:01:27.9]} 30. Nd3 {[%clk 0:00:46.9]} 30... Nfd7 {[%clk
0:01:27.2]} 31. Be1 {[%clk 0:00:46]} 31... Kf8 {[%clk 0:01:27.2]} 32. Bc3 {[%clk
0:00:46]} 32... Ke7 {[%clk 0:01:27.2]} 33. Kc2 {[%clk 0:00:44.5]} 33... Kf8
{[%clk 0:01:27.1]} 34. Kb3 {[%clk 0:00:44.2]} 34... Ke7 {[%clk 0:01:27.2]} 35.
a4 {[%clk 0:00:44.1]} 35... Kf8 {[%clk 0:01:25.4]} 36. b5 {[%clk 0:00:42.1]}
36... axb5 {[%clk 0:01:25]} 37. axb5 {[%clk 0:00:42]} 37... cxb5 {[%clk
0:01:25.3]} 38. Bxb5 {[%clk 0:00:41.9]} 38... Nc6 {[%clk 0:01:25.6]} 39. Kc4
{[%clk 0:00:41.4]} 39... Kf7 {[%clk 0:01:15.5]} 40. Kd5 {[%clk 0:00:41.4]} 40...
Ne7+ {[%clk 0:01:15.4]} 41. Kc4 {[%clk 0:00:40.2]} 41... Nc6 {[%clk 0:01:15.7]}
42. Bxc6 {[%clk 0:00:35.9]} 42... bxc6 {[%clk 0:01:15.1]} 43. Nb4 {[%clk
0:00:29.7]} 43... Nb8 {[%clk 0:01:14.3]} 44. Nd3 {[%clk 0:00:22.2]} 44... Ke6
{[%clk 0:01:13.7]} 45. Bb4 {[%clk 0:00:18.2]} 45... Na6 {[%clk 0:01:11.4]} 46.
Bc3 {[%clk 0:00:18.2]} 46... Nb8 {[%clk 0:01:11.1]} 47. Bb4 {[%clk 0:00:18.4]}
47... Nd7 {[%clk 0:01:11.1]} 48. Bc3 {[%clk 0:00:18.6]} 48... Nb8 {[%clk
0:01:10.6]} 1/2-1/2

[Event "*** SCC Grand Prix: Titled Tuesday Blitz"]
[Site "Chess.com"]
[Date "2020.07.21"]
[Round "9"]
[White "canary2016"]
[Black "biostatistician"]
[Result "0-1"]
[WhiteElo "1928"]
[BlackElo "2564"]
[TimeControl "180+1"]
[EndTime "11:47:52 PDT"]
[Termination "biostatistician won by checkmate"]

1. d4 {[%clk 0:03:00.9]} 1... Nf6 {[%clk 0:02:59.5]} 2. c4 {[%clk 0:03:00.9]}
2... g6 {[%clk 0:02:59.8]} 3. Nf3 {[%clk 0:03:00.3]} 3... Bg7 {[%clk 0:03:00.7]}
4. g3 {[%clk 0:03:00.5]} 4... b6 {[%clk 0:02:59.5]} 5. Bg2 {[%clk 0:03:00.3]}
5... Bb7 {[%clk 0:03:00.4]} 6. O-O {[%clk 0:03:00.3]} 6... O-O {[%clk
0:03:01.1]} 7. Nc3 {[%clk 0:03:00.5]} 7... Ne4 {[%clk 0:03:01.7]} 8. Qc2 {[%clk
0:02:58.6]} 8... Nxc3 {[%clk 0:03:02.6]} 9. bxc3 {[%clk 0:02:56.8]} 9... Nc6
{[%clk 0:03:02.5]} 10. Bb2 {[%clk 0:02:55.7]} 10... d6 {[%clk 0:03:02.5]} 11.
Rad1 {[%clk 0:02:52.7]} 11... Na5 {[%clk 0:03:02.5]} 12. c5 {[%clk 0:02:48.3]}
12... Bd5 {[%clk 0:02:58.5]} 13. cxd6 {[%clk 0:02:44.6]} 13... cxd6 {[%clk
0:02:57.4]} 14. Bc1 {[%clk 0:02:38.2]} 14... Rc8 {[%clk 0:02:54.3]} 15. e4
{[%clk 0:02:35.3]} 15... Bc4 {[%clk 0:02:54.4]} 16. Rfe1 {[%clk 0:02:32.3]}
16... Qd7 {[%clk 0:02:53.6]} 17. Nd2 {[%clk 0:02:25.4]} 17... Bb5 {[%clk
0:02:48.6]} 18. Nb3 {[%clk 0:02:15.1]} 18... Ba4 {[%clk 0:02:48]} 19. Rd2 {[%clk
0:02:06.3]} 19... Qb5 {[%clk 0:02:39.3]} 20. Bf1 {[%clk 0:02:01.7]} 20... Bxb3
{[%clk 0:02:39.2]} 21. Bxb5 {[%clk 0:01:58.3]} 21... Bxc2 {[%clk 0:02:39.2]} 22.
Rxc2 {[%clk 0:01:57.5]} 22... Bxd4 {[%clk 0:02:39.4]} 23. Bb2 {[%clk 0:01:52.5]}
23... Rc5 {[%clk 0:02:36.9]} 24. Bd3 {[%clk 0:01:47.7]} 24... Rfc8 {[%clk
0:02:36]} 25. Rec1 {[%clk 0:01:41.7]} 25... Bf6 {[%clk 0:02:31]} 26. f4 {[%clk
0:01:31]} 26... Nc4 {[%clk 0:02:31.3]} 27. Bxc4 {[%clk 0:01:26.8]} 27... Rxc4
{[%clk 0:02:32.2]} 28. Kf2 {[%clk 0:01:25]} 28... Rxe4 {[%clk 0:02:29.9]} 29.
Kf3 {[%clk 0:01:21.4]} 29... Rec4 {[%clk 0:02:26.9]} 30. Ke2 {[%clk 0:01:20.3]}
30... b5 {[%clk 0:02:27.2]} 31. Kd3 {[%clk 0:01:18.6]} 31... d5 {[%clk
0:02:26.9]} 32. Ba3 {[%clk 0:01:14.7]} 32... e6 {[%clk 0:02:25.3]} 33. Bb4
{[%clk 0:01:13.3]} 33... d4 {[%clk 0:02:18.9]} 34. Ba5 {[%clk 0:01:07.6]} 34...
dxc3 {[%clk 0:02:17.9]} 35. Bxc3 {[%clk 0:01:06]} 35... Bxc3 {[%clk 0:02:17.1]}
36. Rxc3 {[%clk 0:01:06.2]} 36... Rxc3+ {[%clk 0:02:18]} 37. Rxc3 {[%clk
0:01:06.3]} 37... Rxc3+ {[%clk 0:02:18.9]} 38. Kxc3 {[%clk 0:01:06.6]} 38... f6
{[%clk 0:02:07.6]} 39. Kb4 {[%clk 0:01:06.5]} 39... Kf7 {[%clk 0:02:06.6]} 40.
Kxb5 {[%clk 0:01:06.6]} 40... e5 {[%clk 0:02:07.2]} 41. fxe5 {[%clk 0:00:56]}
41... fxe5 {[%clk 0:02:08.1]} 42. Kc5 {[%clk 0:00:56.3]} 42... Ke6 {[%clk
0:02:08.3]} 43. a4 {[%clk 0:00:54.3]} 43... a5 {[%clk 0:01:41.6]} 44. h3 {[%clk
0:00:49.7]} 44... e4 {[%clk 0:01:30.9]} 45. Kd4 {[%clk 0:00:49]} 45... Kf5
{[%clk 0:01:31.3]} 46. Ke3 {[%clk 0:00:29.9]} 46... Ke5 {[%clk 0:01:32.2]} 47.
g4 {[%clk 0:00:27.4]} 47... g5 {[%clk 0:01:32.8]} 48. Ke2 {[%clk 0:00:20.2]}
48... Kf4 {[%clk 0:01:33.7]} 49. Kf2 {[%clk 0:00:20.4]} 49... e3+ {[%clk
0:01:34.3]} 50. Ke2 {[%clk 0:00:20.8]} 50... Ke4 {[%clk 0:01:34.9]} 51. Ke1
{[%clk 0:00:18.9]} 51... Kf3 {[%clk 0:01:35.3]} 52. Kf1 {[%clk 0:00:19.2]} 52...
e2+ {[%clk 0:01:35.8]} 53. Ke1 {[%clk 0:00:19.1]} 53... Ke3 {[%clk 0:01:36.4]}
54. h4 {[%clk 0:00:17.2]} 54... gxh4 {[%clk 0:01:37.3]} 55. g5 {[%clk
0:00:17.4]} 55... h3 {[%clk 0:01:38.2]} 56. g6 {[%clk 0:00:17.7]} 56... h2
{[%clk 0:01:39.1]} 57. g7 {[%clk 0:00:16.9]} 57... h1=Q# {[%clk 0:01:40]} 0-1

[Event "*** SCC Grand Prix: Titled Tuesday Blitz"]
[Site "Chess.com"]
[Date "2020.07.21"]
[Round "9"]
[White "mamey78"]
[Black "Reader777"]
[Result "0-1"]
[WhiteElo "2519"]
[BlackElo "2664"]
[TimeControl "180+1"]
[EndTime "11:47:53 PDT"]
[Termination "Reader777 won by resignation"]

1. e4 {[%clk 0:03:00.9]} 1... c5 {[%clk 0:03:00]} 2. Nf3 {[%clk 0:03:00.5]} 2...
d6 {[%clk 0:03:00.1]} 3. d4 {[%clk 0:02:58.2]} 3... cxd4 {[%clk 0:03:01]} 4.
Nxd4 {[%clk 0:02:58.3]} 4... Nf6 {[%clk 0:03:01.2]} 5. Nc3 {[%clk 0:02:58.4]}
5... a6 {[%clk 0:03:01.7]} 6. Bg5 {[%clk 0:02:58.6]} 6... Nbd7 {[%clk
0:03:01.1]} 7. Qe2 {[%clk 0:02:57.9]} 7... h6 {[%clk 0:03:00.7]} 8. Bh4 {[%clk
0:02:57.5]} 8... Qc7 {[%clk 0:03:00.4]} 9. O-O-O {[%clk 0:02:53]} 9... e6 {[%clk
0:02:56.9]} 10. f4 {[%clk 0:02:50.9]} 10... b5 {[%clk 0:02:54.5]} 11. f5 {[%clk
0:02:49.1]} 11... e5 {[%clk 0:02:53.3]} 12. Nd5 {[%clk 0:02:48.7]} 12... Nxd5
{[%clk 0:02:48]} 13. exd5 {[%clk 0:02:49.6]} 13... Bb7 {[%clk 0:02:47]} 14. Ne6
{[%clk 0:02:39.7]} 14... Qc8 {[%clk 0:02:29.7]} 15. Qh5 {[%clk 0:01:57.4]} 15...
Nf6 {[%clk 0:02:23.1]} 16. Bxf6 {[%clk 0:01:56.2]} 16... gxf6 {[%clk 0:02:23.2]}
17. Be2 {[%clk 0:01:47.6]} 17... Ke7 {[%clk 0:02:20.1]} 18. Nxf8 {[%clk
0:01:35.7]} 18... Qxf8 {[%clk 0:02:12.6]} 19. Qf3 {[%clk 0:01:32.2]} 19... Qc8
{[%clk 0:02:08.4]} 20. g4 {[%clk 0:01:30.2]} 20... Qc5 {[%clk 0:02:06.2]} 21.
Kb1 {[%clk 0:01:26.6]} 21... Rac8 {[%clk 0:02:04.6]} 22. Qe4 {[%clk 0:01:20.8]}
22... Qb6 {[%clk 0:01:55.4]} 23. h4 {[%clk 0:01:17.5]} 23... Rhg8 {[%clk
0:01:53.6]} 24. Rhg1 {[%clk 0:01:16.5]} 24... Qf2 {[%clk 0:01:48.6]} 25. g5
{[%clk 0:01:07.2]} 25... hxg5 {[%clk 0:01:48]} 26. hxg5 {[%clk 0:01:06.6]} 26...
Rxg5 {[%clk 0:01:47]} 27. Rxg5 {[%clk 0:01:05.9]} 27... fxg5 {[%clk 0:01:47.2]}
28. Rf1 {[%clk 0:00:56.3]} 28... Qd4 {[%clk 0:01:32.1]} 29. f6+ {[%clk
0:00:55.2]} 29... Kd8 {[%clk 0:01:30]} 30. Qh7 {[%clk 0:00:29.9]} 30... Bxd5
{[%clk 0:01:28.1]} 31. Rd1 {[%clk 0:00:29.3]} 31... Qc5 {[%clk 0:01:10]} 32. c3
{[%clk 0:00:18.3]} 32... Be6 {[%clk 0:01:02.4]} 33. Qe4 {[%clk 0:00:16.3]} 33...
Kc7 {[%clk 0:01:00.4]} 34. Bf3 {[%clk 0:00:15.3]} 34... Rb8 {[%clk 0:00:56.5]}
35. Bg4 {[%clk 0:00:11.5]} 35... Qc4 {[%clk 0:00:52.2]} 0-1

[Event "*** SCC Grand Prix: Titled Tuesday Blitz"]
[Site "Chess.com"]
[Date "2020.07.21"]
[Round "9"]
[White "DonBroca"]
[Black "kidagent"]
[Result "0-1"]
[WhiteElo "2080"]
[BlackElo "2209"]
[TimeControl "180+1"]
[EndTime "11:47:55 PDT"]
[Termination "kidagent won by resignation"]

1. e4 {[%clk 0:03:00.9]} 1... c5 {[%clk 0:02:59.7]} 2. Nf3 {[%clk 0:02:59.6]}
2... d6 {[%clk 0:02:59.2]} 3. d4 {[%clk 0:02:59.2]} 3... cxd4 {[%clk 0:02:59.8]}
4. Nxd4 {[%clk 0:03:00.1]} 4... Nf6 {[%clk 0:03:00.1]} 5. Nc3 {[%clk 0:03:00]}
5... a6 {[%clk 0:03:00.3]} 6. Bg5 {[%clk 0:02:59.3]} 6... e6 {[%clk 0:03:00.4]}
7. f4 {[%clk 0:02:59.2]} 7... Be7 {[%clk 0:03:00.6]} 8. Qf3 {[%clk 0:02:59.3]}
8... Qc7 {[%clk 0:03:00.7]} 9. O-O-O {[%clk 0:02:57.8]} 9... Nbd7 {[%clk
0:03:01.2]} 10. g4 {[%clk 0:02:57.4]} 10... b5 {[%clk 0:03:00.4]} 11. Be2 {[%clk
0:02:45.5]} 11... Bb7 {[%clk 0:02:58.6]} 12. Rhe1 {[%clk 0:02:37.4]} 12... b4
{[%clk 0:02:55.4]} 13. Na4 {[%clk 0:02:31.6]} 13... Bxe4 {[%clk 0:02:51.7]} 14.
Qb3 {[%clk 0:02:18.9]} 14... d5 {[%clk 0:02:36.3]} 15. Bxf6 {[%clk 0:02:08.7]}
15... Nxf6 {[%clk 0:02:33.9]} 16. g5 {[%clk 0:02:08.8]} 16... Nd7 {[%clk
0:02:33.1]} 17. Rf1 {[%clk 0:01:44.6]} 17... O-O {[%clk 0:02:30.8]} 18. Bd3
{[%clk 0:01:43.8]} 18... e5 {[%clk 0:02:15.7]} 19. fxe5 {[%clk 0:01:41.3]} 19...
Bxg5+ {[%clk 0:02:13.4]} 20. Kb1 {[%clk 0:01:40.9]} 20... Qxe5 {[%clk
0:02:10.7]} 21. Nf3 {[%clk 0:01:28.4]} 21... Bxf3 {[%clk 0:02:04.4]} 22. Rxf3
{[%clk 0:01:29.3]} 22... a5 {[%clk 0:01:54.3]} 23. Rh3 {[%clk 0:01:24.8]} 23...
Nf6 {[%clk 0:01:53]} 24. Nb6 {[%clk 0:01:16.5]} 24... Rad8 {[%clk 0:01:47.1]}
25. Nxd5 {[%clk 0:00:48.8]} 25... Rxd5 {[%clk 0:01:26.3]} 26. Bxh7+ {[%clk
0:00:46.8]} 26... Nxh7 {[%clk 0:01:22.8]} 27. Qxd5 {[%clk 0:00:45.5]} 27... Qxd5
{[%clk 0:01:14.6]} 28. Rxd5 {[%clk 0:00:46.4]} 28... Rd8 {[%clk 0:01:12.3]} 29.
Rhd3 {[%clk 0:00:42.5]} 29... Re8 {[%clk 0:00:58.3]} 30. a3 {[%clk 0:00:35.2]}
30... Bf4 {[%clk 0:00:54.3]} 31. h3 {[%clk 0:00:24.6]} 31... bxa3 {[%clk
0:00:48.4]} 32. Rxa3 {[%clk 0:00:23.5]} 32... Nf6 {[%clk 0:00:48.8]} 33. Rdxa5
{[%clk 0:00:20.6]} 33... Ne4 {[%clk 0:00:43.4]} 34. Ra8 {[%clk 0:00:18.7]} 34...
Rxa8 {[%clk 0:00:41.8]} 35. Rxa8+ {[%clk 0:00:19.6]} 35... Kh7 {[%clk
0:00:41.8]} 36. Ra4 {[%clk 0:00:18.4]} 36... f5 {[%clk 0:00:41.6]} 37. b4 {[%clk
0:00:18.7]} 37... Nc3+ {[%clk 0:00:40.4]} 0-1

[Event "*** SCC Grand Prix: Titled Tuesday Blitz"]
[Site "Chess.com"]
[Date "2020.07.21"]
[Round "9"]
[White "sm_sharon"]
[Black "KratosKrieg"]
[Result "1-0"]
[WhiteElo "2061"]
[BlackElo "1924"]
[TimeControl "180+1"]
[EndTime "11:47:56 PDT"]
[Termination "sm_sharon won by checkmate"]

1. d4 {[%clk 0:02:59.6]} 1... d5 {[%clk 0:02:57.1]} 2. Nf3 {[%clk 0:02:59.1]}
2... Nf6 {[%clk 0:02:56.3]} 3. Bf4 {[%clk 0:02:56.7]} 3... e6 {[%clk 0:02:56.6]}
4. e3 {[%clk 0:02:56.1]} 4... Bd6 {[%clk 0:02:56.8]} 5. Bg3 {[%clk 0:02:55.9]}
5... O-O {[%clk 0:02:57.4]} 6. Bd3 {[%clk 0:02:55.7]} 6... c5 {[%clk 0:02:58]}
7. c3 {[%clk 0:02:55.6]} 7... Nc6 {[%clk 0:02:57.8]} 8. Nbd2 {[%clk 0:02:55.5]}
8... b6 {[%clk 0:02:56.3]} 9. Qe2 {[%clk 0:02:55.4]} 9... c4 {[%clk 0:02:27.3]}
10. Bc2 {[%clk 0:02:53.3]} 10... Be7 {[%clk 0:01:44.7]} 11. e4 {[%clk
0:02:44.4]} 11... Nh5 {[%clk 0:01:38.9]} 12. Ne5 {[%clk 0:02:28.2]} 12... Nxg3
{[%clk 0:01:31.4]} 13. hxg3 {[%clk 0:02:23.6]} 13... Nxe5 {[%clk 0:01:24.7]} 14.
dxe5 {[%clk 0:02:23.1]} 14... d4 {[%clk 0:00:46.6]} 15. Nxc4 {[%clk 0:01:38.2]}
15... Ba6 {[%clk 0:00:44.8]} 16. O-O-O {[%clk 0:01:36.2]} 16... Rc8 {[%clk
0:00:28.6]} 17. Rxd4 {[%clk 0:01:31.1]} 17... Qc7 {[%clk 0:00:25.5]} 18. Qh5
{[%clk 0:01:20.6]} 18... h6 {[%clk 0:00:22.2]} 19. Nd6 {[%clk 0:01:18.4]} 19...
Rcd8 {[%clk 0:00:14.5]} 20. Rhd1 {[%clk 0:01:17.2]} 20... Rd7 {[%clk 0:00:11.2]}
21. f4 {[%clk 0:01:16.4]} 21... Rfd8 {[%clk 0:00:11.3]} 22. Qxf7+ {[%clk
0:01:15.3]} 22... Kh8 {[%clk 0:00:10.5]} 23. Qxe6 {[%clk 0:01:15.1]} 23... Bxd6
{[%clk 0:00:10.1]} 24. Rxd6 {[%clk 0:01:12.4]} 24... Bc8 {[%clk 0:00:07.1]} 25.
Rxd7 {[%clk 0:01:11.8]} 25... Rxd7 {[%clk 0:00:07]} 26. Rxd7 {[%clk 0:01:10.1]}
26... Bxd7 {[%clk 0:00:07.4]} 27. Qd6 {[%clk 0:01:10]} 27... Qc8 {[%clk
0:00:06.6]} 28. f5 {[%clk 0:01:09.2]} 28... Bb5 {[%clk 0:00:05.2]} 29. e6 {[%clk
0:01:06.4]} 29... Qc4 {[%clk 0:00:05.3]} 30. e5 {[%clk 0:00:57.6]} 30... Qxa2
{[%clk 0:00:05.1]} 31. f6 {[%clk 0:00:54.4]} 31... Qa1+ {[%clk 0:00:03.5]} 32.
Kd2 {[%clk 0:00:53.8]} 32... Qg1 {[%clk 0:00:01.2]} 33. Qf8# {[%clk 0:00:52.9]}
1-0

[Event "*** SCC Grand Prix: Titled Tuesday Blitz"]
[Site "Chess.com"]
[Date "2020.07.21"]
[Round "9"]
[White "Pavel_Mir"]
[Black "chessbia"]
[Result "1-0"]
[WhiteElo "2349"]
[BlackElo "2192"]
[TimeControl "180+1"]
[EndTime "11:47:57 PDT"]
[Termination "Pavel_Mir won by resignation"]

1. e4 {[%clk 0:03:00.9]} 1... c5 {[%clk 0:02:59.7]} 2. Nf3 {[%clk 0:03:00.6]}
2... d6 {[%clk 0:03:00.3]} 3. d4 {[%clk 0:03:00.7]} 3... cxd4 {[%clk 0:03:01.2]}
4. Nxd4 {[%clk 0:03:01.3]} 4... Nf6 {[%clk 0:03:02.1]} 5. Nc3 {[%clk 0:03:01.2]}
5... a6 {[%clk 0:03:03]} 6. f4 {[%clk 0:03:01.6]} 6... e5 {[%clk 0:02:58.5]} 7.
Nf3 {[%clk 0:03:01]} 7... Nc6 {[%clk 0:02:56.7]} 8. fxe5 {[%clk 0:02:57.2]} 8...
dxe5 {[%clk 0:02:56.3]} 9. Qxd8+ {[%clk 0:02:56]} 9... Kxd8 {[%clk 0:02:57.2]}
10. Bg5 {[%clk 0:02:55]} 10... Be7 {[%clk 0:02:55.5]} 11. O-O-O+ {[%clk
0:02:53.5]} 11... Ke8 {[%clk 0:02:55.4]} 12. Bc4 {[%clk 0:02:44.9]} 12... h6
{[%clk 0:02:54.6]} 13. Bxf6 {[%clk 0:02:44.1]} 13... Bxf6 {[%clk 0:02:54]} 14.
Nd5 {[%clk 0:02:44.8]} 14... Bd8 {[%clk 0:02:54.3]} 15. Rhf1 {[%clk 0:02:44.1]}
15... Be6 {[%clk 0:02:51.5]} 16. c3 {[%clk 0:02:36.8]} 16... b5 {[%clk
0:02:47.2]} 17. Bb3 {[%clk 0:02:34]} 17... Rc8 {[%clk 0:02:45.7]} 18. Kb1 {[%clk
0:02:32.7]} 18... h5 {[%clk 0:02:29.3]} 19. h3 {[%clk 0:02:29.9]} 19... Rh6
{[%clk 0:02:28.6]} 20. Ne3 {[%clk 0:02:20.6]} 20... Bxb3 {[%clk 0:02:22.3]} 21.
axb3 {[%clk 0:02:21.1]} 21... Re6 {[%clk 0:02:17.4]} 22. Nf5 {[%clk 0:02:17.2]}
22... Kf8 {[%clk 0:02:12.8]} 23. Rd5 {[%clk 0:01:59.7]} 23... g6 {[%clk
0:02:05]} 24. Nd6 {[%clk 0:01:53.3]} 24... Rc7 {[%clk 0:02:01.4]} 25. Rfd1
{[%clk 0:01:41.5]} 25... Kg7 {[%clk 0:01:53.8]} 26. c4 {[%clk 0:01:34.9]} 26...
bxc4 {[%clk 0:01:48]} 27. bxc4 {[%clk 0:01:34.4]} 27... Bf6 {[%clk 0:01:42.7]}
28. g4 {[%clk 0:01:31.9]} 28... hxg4 {[%clk 0:01:42]} 29. hxg4 {[%clk
0:01:32.3]} 29... Rc8 {[%clk 0:01:05.8]} 30. g5 {[%clk 0:01:24.1]} 30... Rxd6
{[%clk 0:01:01.5]} 31. Rxd6 {[%clk 0:01:20.8]} 31... Be7 {[%clk 0:01:01.8]} 32.
Rd7 {[%clk 0:01:16.9]} 32... Bc5 {[%clk 0:00:53.6]} 33. R1d5 {[%clk 0:01:10.8]}
33... Bd4 {[%clk 0:00:19.3]} 34. R5d6 {[%clk 0:01:08.3]} 34... Nb4 {[%clk
0:00:13.5]} 35. Rf6 {[%clk 0:00:53.8]} 35... Rxc4 {[%clk 0:00:12.3]} 36. Rdxf7+
{[%clk 0:00:51.6]} 36... Kg8 {[%clk 0:00:12.6]} 37. Rf8+ {[%clk 0:00:51.4]} 1-0

[Event "*** SCC Grand Prix: Titled Tuesday Blitz"]
[Site "Chess.com"]
[Date "2020.07.21"]
[Round "9"]
[White "hansen"]
[Black "Hikaru"]
[Result "1/2-1/2"]
[WhiteElo "2927"]
[BlackElo "3250"]
[TimeControl "180+1"]
[EndTime "11:47:58 PDT"]
[Termination "Game drawn by repetition"]

1. e4 {[%clk 0:02:59.7]} 1... e5 {[%clk 0:03:00]} 2. Nf3 {[%clk 0:02:58.5]} 2...
Nc6 {[%clk 0:03:00.5]} 3. Bb5 {[%clk 0:02:56.7]} 3... Nf6 {[%clk 0:03:00.6]} 4.
O-O {[%clk 0:02:42.9]} 4... Nxe4 {[%clk 0:03:00.5]} 5. Re1 {[%clk 0:02:43.3]}
5... Nd6 {[%clk 0:03:00.9]} 6. Nxe5 {[%clk 0:02:42.1]} 6... Be7 {[%clk
0:03:01.2]} 7. Bf1 {[%clk 0:02:40.5]} 7... Nxe5 {[%clk 0:03:01.4]} 8. Rxe5
{[%clk 0:02:40.6]} 8... O-O {[%clk 0:03:02.1]} 9. Nc3 {[%clk 0:02:38.1]} 9...
Ne8 {[%clk 0:03:02.2]} 10. Nd5 {[%clk 0:02:35.7]} 10... Bd6 {[%clk 0:02:59.7]}
11. Re1 {[%clk 0:02:35.4]} 11... c6 {[%clk 0:02:57.3]} 12. Ne3 {[%clk
0:02:35.6]} 12... Be7 {[%clk 0:02:57.4]} 13. c4 {[%clk 0:02:13.4]} 13... Nc7
{[%clk 0:02:53.1]} 14. d4 {[%clk 0:02:09.3]} 14... d5 {[%clk 0:02:49.5]} 15.
cxd5 {[%clk 0:02:08.1]} 15... Bb4 {[%clk 0:02:49.9]} 16. Bd2 {[%clk 0:02:07.7]}
16... Bxd2 {[%clk 0:02:49.9]} 17. Qxd2 {[%clk 0:02:08.6]} 17... Nxd5 {[%clk
0:02:50.6]} 18. Nxd5 {[%clk 0:02:06.8]} 18... Qxd5 {[%clk 0:02:51.1]} 19. Re5
{[%clk 0:02:06.4]} 19... Qd6 {[%clk 0:02:51.7]} 20. Bc4 {[%clk 0:02:04.9]} 20...
Bd7 {[%clk 0:02:49.5]} 21. Rae1 {[%clk 0:02:03.2]} 21... b5 {[%clk 0:02:48.9]}
22. Bb3 {[%clk 0:02:01.7]} 22... a5 {[%clk 0:02:49.4]} 23. a3 {[%clk 0:01:42.9]}
23... a4 {[%clk 0:02:48.9]} 24. Ba2 {[%clk 0:01:43.1]} 24... Rae8 {[%clk
0:02:42.7]} 25. Qc3 {[%clk 0:01:38.1]} 25... Rxe5 {[%clk 0:02:37.7]} 26. dxe5
{[%clk 0:01:37.5]} 26... Qe7 {[%clk 0:02:37.8]} 27. Rd1 {[%clk 0:01:34.5]} 27...
c5 {[%clk 0:01:49.4]} 28. Rd6 {[%clk 0:01:30.9]} 28... Rc8 {[%clk 0:01:49.4]}
29. f4 {[%clk 0:01:25.5]} 29... Bf5 {[%clk 0:01:44.8]} 30. Bd5 {[%clk
0:01:17.4]} 30... b4 {[%clk 0:01:37.9]} 31. Qc4 {[%clk 0:00:56.8]} 31... h5
{[%clk 0:01:37.7]} 32. h3 {[%clk 0:00:47.7]} 32... Rc7 {[%clk 0:01:38.1]} 33.
axb4 {[%clk 0:00:37.4]} 33... cxb4 {[%clk 0:01:38.4]} 34. Qxb4 {[%clk
0:00:38.3]} 34... Qh4 {[%clk 0:01:33.4]} 35. Rc6 {[%clk 0:00:29.7]} 35... Rxc6
{[%clk 0:01:16.4]} 36. Bxc6 {[%clk 0:00:28.3]} 36... Qg3 {[%clk 0:01:16.9]} 37.
Kh1 {[%clk 0:00:20.1]} 37... Be6 {[%clk 0:01:07.8]} 38. Qxa4 {[%clk 0:00:17.2]}
38... g5 {[%clk 0:00:56.9]} 39. fxg5 {[%clk 0:00:14.5]} 39... Qe1+ {[%clk
0:00:57]} 40. Kh2 {[%clk 0:00:13.2]} 40... Qxe5+ {[%clk 0:00:57.2]} 41. Kh1
{[%clk 0:00:12.8]} 41... Qe1+ {[%clk 0:00:54.3]} 42. Kh2 {[%clk 0:00:12.6]}
42... Qe5+ {[%clk 0:00:54.9]} 43. Kh1 {[%clk 0:00:12.8]} 43... Qe1+ {[%clk
0:00:52.5]} 44. Kh2 {[%clk 0:00:13]} 44... Qe5+ {[%clk 0:00:52.5]} 1/2-1/2